[Event "Titled Tuesday Blitz January 04 2022"]
[White "Aloma Vidal, Robert"]
[Black "Ibarra Jerez, Jose Carlos"]
[WhiteFideId "2260409"]
[BlackFideId "2226332"]
[WhiteElo "2435"]
[BlackElo "2626"]
[Result "0-1"]
[Round "10"]
[TimeControl "180+1"]
[Date "2022.01.04"]
[WhiteClock "0:00:21"]
[BlackClock "0:01:27"]

1. e4 {[%clk 0:02:20]}  c5 {[%clk 0:02:57]} 2. c3 {[%clk 0:02:19]}  Nf6 {[%clk 0:02:57]} 3. e5 {[%clk 0:02:20]}  Nd5 {[%clk 0:02:57]} 4. Nf3 {[%clk 0:02:20]}  Nc6 {[%clk 0:02:57]} 5. Bc4 {[%clk 0:02:20]}  Nb6 {[%clk 0:02:57]} 6. Bb3 {[%clk 0:02:21]}  g6 {[%clk 0:02:57]} 7. d4 {[%clk 0:02:18]}  cxd4 {[%clk 0:02:57]} 8. cxd4 {[%clk 0:02:19]}  Bg7 {[%clk 0:02:57]} 9. O-O {[%clk 0:02:18]}  O-O {[%clk 0:02:57]} 10. Nc3 {[%clk 0:02:17]}  d6 {[%clk 0:02:56]} 11. exd6 {[%clk 0:02:08]}  Qxd6 {[%clk 0:02:54]} 12. d5 {[%clk 0:02:05]}  Na5 {[%clk 0:02:52]} 13. Re1 {[%clk 0:01:58]}  Bg4 {[%clk 0:02:41]} 14. h3 {[%clk 0:01:57]}  Nxb3 {[%clk 0:02:40]} 15. axb3 {[%clk 0:01:55]}  Bf5 {[%clk 0:02:17]} 16. Bg5 {[%clk 0:01:43]}  Rfe8 {[%clk 0:02:14]} 17. Nd4 {[%clk 0:01:39]}  Bd7 {[%clk 0:02:08]} 18. Ndb5 {[%clk 0:01:19]}  Bxb5 {[%clk 0:02:08]} 19. Nxb5 {[%clk 0:01:19]}  Qxd5 {[%clk 0:02:08]} 20. Qxd5 {[%clk 0:00:49]}  Nxd5 {[%clk 0:02:07]} 21. Rxa7 {[%clk 0:00:47]}  Rxa7 {[%clk 0:02:06]} 22. Nxa7 {[%clk 0:00:48]}  Bxb2 {[%clk 0:02:03]} 23. Nb5 {[%clk 0:00:46]}  f6 {[%clk 0:01:56]} 24. Rd1 {[%clk 0:00:41]}  e6 {[%clk 0:01:37]} 25. Bh4 {[%clk 0:00:41]}  Be5 {[%clk 0:01:34]} 26. f3 {[%clk 0:00:33]}  Ra8 {[%clk 0:01:29]} 27. Nd4 {[%clk 0:00:21]}  Nc3 {[%clk 0:01:27]} 0-1


[Site "https://www.chess.com"]

[Event "Titled Tuesday Blitz January 04 2022"]
[White "Danada, Tomas"]
[Black "Grandelius, Nils"]
[WhiteFideId "14919362"]
[BlackFideId "1710400"]
[WhiteElo "2051"]
[BlackElo "2617"]
[Result "0-1"]
[Round "10"]
[TimeControl "180+1"]
[Date "2022.01.04"]
[WhiteClock "0:00:01"]
[BlackClock "0:00:16"]

1. e4 {[%clk 0:02:58]}  c6 {[%clk 0:03:00]} 2. d4 {[%clk 0:02:57]}  d5 {[%clk 0:03:00]} 3. f3 {[%clk 0:02:57]}  g6 {[%clk 0:02:57]} 4. c3 {[%clk 0:02:55]}  Bg7 {[%clk 0:02:55]} 5. Nd2 {[%clk 0:02:55]}  Nh6 {[%clk 0:02:45]} 6. e5 {[%clk 0:02:47]}  f6 {[%clk 0:02:44]} 7. exf6 {[%clk 0:02:45]}  exf6 {[%clk 0:02:43]} 8. Bd3 {[%clk 0:02:44]}  Nf5 {[%clk 0:02:39]} 9. Nb3 {[%clk 0:02:34]}  O-O {[%clk 0:02:28]} 10. Ne2 {[%clk 0:02:34]}  Qe7 {[%clk 0:02:21]} 11. Kf2 {[%clk 0:02:28]}  a5 {[%clk 0:02:15]} 12. a4 {[%clk 0:02:27]}  Re8 {[%clk 0:02:10]} 13. Re1 {[%clk 0:02:25]}  Ne3 {[%clk 0:02:07]} 14. Qd2 {[%clk 0:01:55]}  Bh6 {[%clk 0:02:06]} 15. f4 {[%clk 0:01:54]}  Nc4 {[%clk 0:01:54]} 16. Qd1 {[%clk 0:01:30]}  Nd6 {[%clk 0:01:46]} 17. Ng3 {[%clk 0:01:25]}  Qxe1+ {[%clk 0:01:41]} 18. Qxe1 {[%clk 0:01:26]}  Rxe1 {[%clk 0:01:41]} 19. Kxe1 {[%clk 0:01:27]}  b6 {[%clk 0:01:38]} 20. Kf2 {[%clk 0:01:18]}  Ba6 {[%clk 0:01:37]} 21. Bxa6 {[%clk 0:01:14]}  Nxa6 {[%clk 0:01:38]} 22. Bd2 {[%clk 0:01:03]}  Nc4 {[%clk 0:01:32]} 23. Bc1 {[%clk 0:00:49]}  Kf7 {[%clk 0:01:24]} 24. Nf1 {[%clk 0:00:40]}  Nc7 {[%clk 0:01:19]} 25. Nbd2 {[%clk 0:00:35]}  Nd6 {[%clk 0:01:08]} 26. g3 {[%clk 0:00:31]}  Re8 {[%clk 0:00:59]} 27. b3 {[%clk 0:00:31]}  g5 {[%clk 0:00:47]} 28. Ba3 {[%clk 0:00:27]}  Ne4+ {[%clk 0:00:41]} 29. Nxe4 {[%clk 0:00:26]}  dxe4 {[%clk 0:00:42]} 30. fxg5 {[%clk 0:00:15]}  Bxg5 {[%clk 0:00:43]} 31. Re1 {[%clk 0:00:13]}  f5 {[%clk 0:00:36]} 32. Bc1 {[%clk 0:00:12]}  Bf6 {[%clk 0:00:33]} 33. Ne3 {[%clk 0:00:11]}  Kg6 {[%clk 0:00:33]} 34. Nc4 {[%clk 0:00:12]}  Nd5 {[%clk 0:00:32]} 35. Bd2 {[%clk 0:00:12]}  c5 {[%clk 0:00:24]} 36. Ne3 {[%clk 0:00:09]}  Nxe3 {[%clk 0:00:21]} 37. Bxe3 {[%clk 0:00:10]}  cxd4 {[%clk 0:00:20]} 38. Bxd4 {[%clk 0:00:10]}  Bxd4+ {[%clk 0:00:20]} 39. cxd4 {[%clk 0:00:11]}  Rc8 {[%clk 0:00:21]} 40. g4 {[%clk 0:00:04]}  Rc3 {[%clk 0:00:16]} 41. gxf5+ {[%clk 0:00:03]}  Kxf5 {[%clk 0:00:17]} 42. Rb1 {[%clk 0:00:04]}  Kf4 {[%clk 0:00:17]} 43. b4 {[%clk 0:00:03]}  Rc2+ {[%clk 0:00:17]} 44. Ke1 {[%clk 0:00:01]}  Rxh2 {[%clk 0:00:17]} 45. Rb3 {[%clk 0:00:01]}  e3 {[%clk 0:00:18]} 46. bxa5 {[%clk 0:00:01]}  Kf3 {[%clk 0:00:17]} 47. Kd1 {[%clk 0:00:01]}  Rh1+ {[%clk 0:00:16]} 0-1


[Site "https://www.chess.com"]

[Event "Titled Tuesday Blitz January 04 2022"]
[White "Dev, Shah"]
[Black "Timofeev, Artyom"]
[WhiteFideId "35019058"]
[BlackFideId "4140419"]
[WhiteElo "2098"]
[BlackElo "2583"]
[Result "0-1"]
[Round "10"]
[TimeControl "180+1"]
[Date "2022.01.04"]
[WhiteClock "0:00:03"]
[BlackClock "0:01:29"]

1. d4 {[%clk 0:03:00]}  d5 {[%clk 0:02:59]} 2. c4 {[%clk 0:03:01]}  e6 {[%clk 0:02:59]} 3. Nf3 {[%clk 0:03:01]}  c6 {[%clk 0:03:00]} 4. g3 {[%clk 0:03:00]}  dxc4 {[%clk 0:02:59]} 5. Bg2 {[%clk 0:03:00]}  b5 {[%clk 0:02:59]} 6. a4 {[%clk 0:02:52]}  Bb7 {[%clk 0:02:59]} 7. Ne5 {[%clk 0:02:46]}  Qc8 {[%clk 0:02:59]} 8. b3 {[%clk 0:02:43]}  cxb3 {[%clk 0:02:51]} 9. Qxb3 {[%clk 0:02:44]}  a6 {[%clk 0:02:48]} 10. Nc3 {[%clk 0:02:41]}  Nf6 {[%clk 0:02:43]} 11. O-O {[%clk 0:02:34]}  Nbd7 {[%clk 0:02:37]} 12. Bg5 {[%clk 0:02:24]}  Nxe5 {[%clk 0:02:33]} 13. dxe5 {[%clk 0:02:24]}  Nd5 {[%clk 0:02:31]} 14. axb5 {[%clk 0:01:43]}  axb5 {[%clk 0:02:28]} 15. Rxa8 {[%clk 0:01:35]}  Qxa8 {[%clk 0:02:25]} 16. Nxd5 {[%clk 0:01:36]}  exd5 {[%clk 0:02:24]} 17. e6 {[%clk 0:01:20]}  f6 {[%clk 0:02:18]} 18. Bf4 {[%clk 0:01:13]}  Be7 {[%clk 0:02:18]} 19. e4 {[%clk 0:01:07]}  d4 {[%clk 0:02:12]} 20. Qb2 {[%clk 0:00:55]}  O-O {[%clk 0:01:57]} 21. Qxd4 {[%clk 0:00:53]}  Rd8 {[%clk 0:01:55]} 22. Qb6 {[%clk 0:00:52]}  c5 {[%clk 0:01:45]} 23. Qxb5 {[%clk 0:00:14]}  Ba6 {[%clk 0:01:44]} 24. Qb6 {[%clk 0:00:07]}  Bxf1 {[%clk 0:01:44]} 25. Bxf1 {[%clk 0:00:06]}  Qxe4 {[%clk 0:01:43]} 26. Qc7 {[%clk 0:00:03]}  Qxe6 {[%clk 0:01:34]} 27. h4 {[%clk 0:00:03]}  Rd1 {[%clk 0:01:29]} 0-1


[Site "https://www.chess.com"]

[Event "Titled Tuesday Blitz January 04 2022"]
[White "Djordjevic, Vuk"]
[Black "Yaksin, Oleg"]
[WhiteFideId "902098"]
[BlackFideId "24105880"]
[WhiteElo "2463"]
[BlackElo "2256"]
[Result "0-1"]
[Round "10"]
[TimeControl "180+1"]
[Date "2022.01.04"]
[WhiteClock "0:00:04"]
[BlackClock "0:00:11"]

1. d4 {[%clk 0:03:00]}  Nf6 {[%clk 0:02:57]} 2. Bg5 {[%clk 0:03:01]}  e6 {[%clk 0:02:56]} 3. e4 {[%clk 0:03:01]}  h6 {[%clk 0:02:56]} 4. Bxf6 {[%clk 0:03:01]}  Qxf6 {[%clk 0:02:57]} 5. c3 {[%clk 0:03:02]}  d6 {[%clk 0:02:57]} 6. Bd3 {[%clk 0:03:03]}  g6 {[%clk 0:02:57]} 7. Ne2 {[%clk 0:03:03]}  Bg7 {[%clk 0:02:57]} 8. O-O {[%clk 0:03:04]}  Nd7 {[%clk 0:02:53]} 9. f4 {[%clk 0:03:04]}  Qe7 {[%clk 0:02:53]} 10. f5 {[%clk 0:03:02]}  O-O {[%clk 0:02:35]} 11. fxg6 {[%clk 0:02:54]}  fxg6 {[%clk 0:02:34]} 12. Nf4 {[%clk 0:02:54]}  e5 {[%clk 0:01:54]} 13. Nxg6 {[%clk 0:02:50]}  Rxf1+ {[%clk 0:01:54]} 14. Qxf1 {[%clk 0:02:47]}  Qg5 {[%clk 0:01:54]} 15. Bc4+ {[%clk 0:02:13]}  Kh7 {[%clk 0:01:42]} 16. Qf7 {[%clk 0:02:12]}  Nf6 {[%clk 0:01:12]} 17. Nf8+ {[%clk 0:02:12]}  Kh8 {[%clk 0:01:11]} 18. Ng6+ {[%clk 0:02:13]}  Kh7 {[%clk 0:01:11]} 19. Na3 {[%clk 0:01:47]}  Qxg6 {[%clk 0:01:07]} 20. Qxc7 {[%clk 0:01:42]}  Bh3 {[%clk 0:01:00]} 21. Bf1 {[%clk 0:01:38]}  exd4 {[%clk 0:00:59]} 22. Qxb7 {[%clk 0:01:33]}  Rf8 {[%clk 0:00:58]} 23. Re1 {[%clk 0:00:58]}  Nd5 {[%clk 0:00:48]} 24. Qb5 {[%clk 0:00:38]}  Ne3 {[%clk 0:00:44]} 25. Qe2 {[%clk 0:00:28]}  Bg4 {[%clk 0:00:23]} 26. Qd2 {[%clk 0:00:26]}  Nxf1 {[%clk 0:00:22]} 27. Rxf1 {[%clk 0:00:26]}  Rxf1+ {[%clk 0:00:23]} 28. Kxf1 {[%clk 0:00:27]}  Qxe4 {[%clk 0:00:22]} 29. Nb5 {[%clk 0:00:20]}  d3 {[%clk 0:00:21]} 30. Nxd6 {[%clk 0:00:16]}  Be2+ {[%clk 0:00:19]} 31. Kf2 {[%clk 0:00:13]}  Qe5 {[%clk 0:00:12]} 32. Nc4 {[%clk 0:00:10]}  Qf5+ {[%clk 0:00:11]} 33. Ke3 {[%clk 0:00:10]}  Qg5+ {[%clk 0:00:09]} 34. Kf2 {[%clk 0:00:10]}  Qf5+ {[%clk 0:00:08]} 35. Kg3 {[%clk 0:00:07]}  Qg4+ {[%clk 0:00:06]} 36. Kf2 {[%clk 0:00:07]}  Bf6 {[%clk 0:00:06]} 37. Ne3 {[%clk 0:00:05]}  Bh4+ {[%clk 0:00:04]} 38. g3 {[%clk 0:00:04]}  Qf3+ {[%clk 0:00:05]} 39. Ke1 {[%clk 0:00:05]}  Bg5 {[%clk 0:00:05]} 40. Nc4 {[%clk 0:00:02]}  Bxd2+ {[%clk 0:00:05]} 41. Kxd2 {[%clk 0:00:02]}  Qh1 {[%clk 0:00:06]} 42. Ne3 {[%clk 0:00:02]}  Qxh2 {[%clk 0:00:07]} 43. g4 {[%clk 0:00:02]}  Qg3 {[%clk 0:00:07]} 44. b4 {[%clk 0:00:02]}  Qf4 {[%clk 0:00:07]} 45. c4 {[%clk 0:00:02]}  Kg6 {[%clk 0:00:08]} 46. c5 {[%clk 0:00:02]}  Kf6 {[%clk 0:00:08]} 47. c6 {[%clk 0:00:02]}  Ke6 {[%clk 0:00:08]} 48. b5 {[%clk 0:00:03]}  Kd6 {[%clk 0:00:09]} 49. a4 {[%clk 0:00:03]}  Kc7 {[%clk 0:00:09]} 50. a5 {[%clk 0:00:02]}  Qg5 {[%clk 0:00:10]} 51. b6+ {[%clk 0:00:01]}  axb6 {[%clk 0:00:11]} 52. a6 {[%clk 0:00:02]}  Kxc6 {[%clk 0:00:11]} 53. a7 {[%clk 0:00:02]}  Kb7 {[%clk 0:00:11]} 54. a8=Q+ {[%clk 0:00:02]}  Kxa8 {[%clk 0:00:11]} 55. Ke1 {[%clk 0:00:03]}  Qxe3 {[%clk 0:00:11]} 56. g5 {[%clk 0:00:04]}  d2# {[%clk 0:00:11]} 0-1


[Site "https://www.chess.com"]

[Event "Titled Tuesday Blitz January 04 2022"]
[White "Ezat, Mohamed"]
[Black "Shipov, Sergei"]
[WhiteFideId "10600906"]
[BlackFideId "4113624"]
[WhiteElo "2386"]
[BlackElo "2778"]
[Result "0-1"]
[Round "10"]
[TimeControl "180+1"]
[Date "2022.01.04"]
[WhiteClock "0:00:05"]
[BlackClock "0:00:22"]

1. d4 {[%clk 0:03:00]}  Nf6 {[%clk 0:02:58]} 2. Nf3 {[%clk 0:02:59]}  g6 {[%clk 0:02:57]} 3. Nbd2 {[%clk 0:02:59]}  d5 {[%clk 0:02:57]} 4. e3 {[%clk 0:02:59]}  Bg7 {[%clk 0:02:57]} 5. b4 {[%clk 0:02:59]}  a5 {[%clk 0:02:56]} 6. b5 {[%clk 0:02:59]}  a4 {[%clk 0:02:56]} 7. c4 {[%clk 0:02:55]}  c6 {[%clk 0:02:56]} 8. Ba3 {[%clk 0:02:50]}  O-O {[%clk 0:02:56]} 9. Be2 {[%clk 0:02:46]}  Bf5 {[%clk 0:02:55]} 10. O-O {[%clk 0:02:46]}  Nbd7 {[%clk 0:02:55]} 11. Rc1 {[%clk 0:02:43]}  Re8 {[%clk 0:02:55]} 12. h3 {[%clk 0:02:41]}  Qa5 {[%clk 0:02:50]} 13. g4 {[%clk 0:02:31]}  Be6 {[%clk 0:02:42]} 14. Ng5 {[%clk 0:02:31]}  Nf8 {[%clk 0:02:42]} 15. Ndf3 {[%clk 0:02:23]}  cxb5 {[%clk 0:02:10]} 16. cxb5 {[%clk 0:02:19]}  h6 {[%clk 0:02:08]} 17. Nxe6 {[%clk 0:02:19]}  Nxe6 {[%clk 0:02:09]} 18. Ne5 {[%clk 0:02:09]}  Ne4 {[%clk 0:02:09]} 19. Qd3 {[%clk 0:01:55]}  Rac8 {[%clk 0:01:59]} 20. Bf3 {[%clk 0:01:49]}  N6g5 {[%clk 0:01:54]} 21. Bg2 {[%clk 0:01:45]}  Qd2 {[%clk 0:01:39]} 22. Rxc8 {[%clk 0:01:31]}  Rxc8 {[%clk 0:01:37]} 23. Bxe7 {[%clk 0:01:29]}  Bxe5 {[%clk 0:01:31]} 24. Qxd2 {[%clk 0:01:20]}  Nxd2 {[%clk 0:01:31]} 25. Rd1 {[%clk 0:00:45]}  Ndf3+ {[%clk 0:00:54]} 26. Kh1 {[%clk 0:00:43]}  Bg7 {[%clk 0:00:42]} 27. Bxg5 {[%clk 0:00:43]}  Nxg5 {[%clk 0:00:41]} 28. Bxd5 {[%clk 0:00:43]}  Rc2 {[%clk 0:00:38]} 29. Kg2 {[%clk 0:00:39]}  b6 {[%clk 0:00:38]} 30. Rd3 {[%clk 0:00:31]}  Bf8 {[%clk 0:00:38]} 31. h4 {[%clk 0:00:22]}  Ne6 {[%clk 0:00:37]} 32. h5 {[%clk 0:00:22]}  g5 {[%clk 0:00:36]} 33. Kf3 {[%clk 0:00:21]}  Bd6 {[%clk 0:00:36]} 34. Rd1 {[%clk 0:00:18]}  Kf8 {[%clk 0:00:36]} 35. Ra1 {[%clk 0:00:17]}  Ke7 {[%clk 0:00:35]} 36. Be4 {[%clk 0:00:16]}  Rb2 {[%clk 0:00:34]} 37. Bd5 {[%clk 0:00:14]}  Rxb5 {[%clk 0:00:32]} 38. Bc6 {[%clk 0:00:13]}  Rb4 {[%clk 0:00:33]} 39. a3 {[%clk 0:00:12]}  Rc4 {[%clk 0:00:33]} 40. Bb5 {[%clk 0:00:12]}  Rc3 {[%clk 0:00:32]} 41. Bxa4 {[%clk 0:00:13]}  Rxa3 {[%clk 0:00:33]} 42. Rxa3 {[%clk 0:00:13]}  Bxa3 {[%clk 0:00:33]} 43. Ke4 {[%clk 0:00:14]}  Bb4 {[%clk 0:00:32]} 44. f3 {[%clk 0:00:09]}  Bd2 {[%clk 0:00:32]} 45. Kd3 {[%clk 0:00:07]}  Bc1 {[%clk 0:00:32]} 46. Bb3 {[%clk 0:00:07]}  Kd6 {[%clk 0:00:32]} 47. Ke4 {[%clk 0:00:05]}  b5 {[%clk 0:00:31]} 48. Kd3 {[%clk 0:00:05]}  f6 {[%clk 0:00:30]} 49. Ke4 {[%clk 0:00:05]}  Nc7 {[%clk 0:00:30]} 50. Kf5 {[%clk 0:00:04]}  Bxe3 {[%clk 0:00:30]} 51. Kxf6 {[%clk 0:00:05]}  Bxd4+ {[%clk 0:00:21]} 52. Kg6 {[%clk 0:00:05]}  Ke7 {[%clk 0:00:21]} 53. Kxh6 {[%clk 0:00:05]}  Kf6 {[%clk 0:00:22]} 54. f4 {[%clk 0:00:03]}  Be3 {[%clk 0:00:20]} 55. fxg5+ {[%clk 0:00:02]}  Bxg5+ {[%clk 0:00:21]} 56. Kh7 {[%clk 0:00:03]}  Ne6 {[%clk 0:00:20]} 57. h6 {[%clk 0:00:03]}  Nd4 {[%clk 0:00:21]} 58. Ba2 {[%clk 0:00:02]}  b4 {[%clk 0:00:21]} 59. Bc4 {[%clk 0:00:01]}  Be3 {[%clk 0:00:19]} 60. Bb3 {[%clk 0:00:02]}  Nxb3 {[%clk 0:00:19]} 61. Kg8 {[%clk 0:00:03]}  Bxh6 {[%clk 0:00:18]} 62. g5+ {[%clk 0:00:04]}  Bxg5 {[%clk 0:00:19]} 63. Kh7 {[%clk 0:00:02]}  Nd4 {[%clk 0:00:20]} 64. Kh8 {[%clk 0:00:02]}  b3 {[%clk 0:00:21]} 65. Kh7 {[%clk 0:00:03]}  b2 {[%clk 0:00:21]} 66. Kh8 {[%clk 0:00:03]}  b1=Q {[%clk 0:00:21]} 67. Kg8 {[%clk 0:00:04]}  Qb8+ {[%clk 0:00:21]} 68. Kh7 {[%clk 0:00:04]}  Qc7+ {[%clk 0:00:21]} 69. Kh8 {[%clk 0:00:05]}  Qg7# {[%clk 0:00:22]} 0-1


[Site "https://www.chess.com"]

[Event "Titled Tuesday Blitz January 04 2022"]
[White "Fernandez Reyes, Lisandro"]
[Black "Kobo, Ori"]
[WhiteFideId "3504190"]
[BlackFideId "2812320"]
[WhiteElo "2374"]
[BlackElo "2420"]
[Result "1-0"]
[Round "10"]
[TimeControl "180+1"]
[Date "2022.01.04"]
[WhiteClock "0:01:01"]
[BlackClock "0:00:01"]

1. e4 {[%clk 0:03:00]}  g6 {[%clk 0:02:58]} 2. Nc3 {[%clk 0:02:59]}  Bg7 {[%clk 0:02:59]} 3. Bc4 {[%clk 0:02:59]}  d6 {[%clk 0:02:53]} 4. d3 {[%clk 0:02:59]}  Nf6 {[%clk 0:02:51]} 5. f4 {[%clk 0:02:59]}  c6 {[%clk 0:02:48]} 6. Bb3 {[%clk 0:02:59]}  Na6 {[%clk 0:02:44]} 7. d4 {[%clk 0:02:54]}  O-O {[%clk 0:02:38]} 8. Nf3 {[%clk 0:02:53]}  c5 {[%clk 0:02:38]} 9. e5 {[%clk 0:02:50]}  Ne8 {[%clk 0:02:34]} 10. Be3 {[%clk 0:02:41]}  cxd4 {[%clk 0:02:26]} 11. Bxd4 {[%clk 0:02:36]}  Bg4 {[%clk 0:02:18]} 12. h3 {[%clk 0:02:33]}  Bxf3 {[%clk 0:02:19]} 13. Qxf3 {[%clk 0:02:33]}  dxe5 {[%clk 0:02:19]} 14. Bxe5 {[%clk 0:02:33]}  Bxe5 {[%clk 0:02:03]} 15. fxe5 {[%clk 0:02:33]}  Qd4 {[%clk 0:02:04]} 16. Qe4 {[%clk 0:02:29]}  Rd8 {[%clk 0:01:51]} 17. Rd1 {[%clk 0:02:27]}  Qxe4+ {[%clk 0:01:49]} 18. Nxe4 {[%clk 0:02:27]}  Rxd1+ {[%clk 0:01:49]} 19. Kxd1 {[%clk 0:02:27]}  Ng7 {[%clk 0:01:48]} 20. Rf1 {[%clk 0:02:26]}  Nf5 {[%clk 0:01:46]} 21. Kc1 {[%clk 0:02:25]}  Nd4 {[%clk 0:01:21]} 22. Bd5 {[%clk 0:02:20]}  b6 {[%clk 0:01:07]} 23. c3 {[%clk 0:02:19]}  Nf5 {[%clk 0:01:06]} 24. Rf3 {[%clk 0:02:00]}  Nc7 {[%clk 0:01:05]} 25. Bb3 {[%clk 0:01:59]}  Kg7 {[%clk 0:00:53]} 26. g4 {[%clk 0:01:58]}  Nh4 {[%clk 0:00:39]} 27. Rd3 {[%clk 0:01:58]}  Rc8 {[%clk 0:00:37]} 28. Rd7 {[%clk 0:01:58]}  Kf8 {[%clk 0:00:37]} 29. Ng5 {[%clk 0:01:54]}  Ke8 {[%clk 0:00:25]} 30. Rd1 {[%clk 0:01:54]}  e6 {[%clk 0:00:18]} 31. Nxh7 {[%clk 0:01:52]}  Nf3 {[%clk 0:00:14]} 32. Nf6+ {[%clk 0:01:52]}  Kf8 {[%clk 0:00:15]} 33. Nd7+ {[%clk 0:01:48]}  Ke7 {[%clk 0:00:14]} 34. Rd3 {[%clk 0:01:48]}  Ne1 {[%clk 0:00:09]} 35. Re3 {[%clk 0:01:35]}  Ng2 {[%clk 0:00:09]} 36. Rd3 {[%clk 0:01:34]}  Nf4 {[%clk 0:00:08]} 37. Rd2 {[%clk 0:01:33]}  Rd8 {[%clk 0:00:07]} 38. Nf6 {[%clk 0:01:31]}  Rxd2 {[%clk 0:00:07]} 39. Kxd2 {[%clk 0:01:30]}  Nxh3 {[%clk 0:00:08]} 40. Ke3 {[%clk 0:01:30]}  Ne8 {[%clk 0:00:08]} 41. Ne4 {[%clk 0:01:27]}  Nc7 {[%clk 0:00:04]} 42. c4 {[%clk 0:01:28]}  g5 {[%clk 0:00:03]} 43. Bc2 {[%clk 0:01:27]}  Nf4 {[%clk 0:00:03]} 44. Nxg5 {[%clk 0:01:25]}  Ng6 {[%clk 0:00:03]} 45. Nf3 {[%clk 0:01:25]}  Nf8 {[%clk 0:00:03]} 46. b4 {[%clk 0:01:24]}  Ne8 {[%clk 0:00:03]} 47. g5 {[%clk 0:01:23]}  Nd7 {[%clk 0:00:04]} 48. Kd4 {[%clk 0:01:22]}  Ng7 {[%clk 0:00:04]} 49. c5 {[%clk 0:01:21]}  bxc5+ {[%clk 0:00:05]} 50. bxc5 {[%clk 0:01:22]}  Kd8 {[%clk 0:00:05]} 51. c6 {[%clk 0:01:21]}  Nb8 {[%clk 0:00:06]} 52. Kc5 {[%clk 0:01:12]}  Na6+ {[%clk 0:00:05]} 53. Kb5 {[%clk 0:01:10]}  Nc7+ {[%clk 0:00:05]} 54. Kc5 {[%clk 0:01:11]}  Na6+ {[%clk 0:00:05]} 55. Kc4 {[%clk 0:01:09]}  Kc7 {[%clk 0:00:06]} 56. Nd4 {[%clk 0:01:09]}  Nb8 {[%clk 0:00:04]} 57. Be4 {[%clk 0:01:09]}  a6 {[%clk 0:00:04]} 58. a4 {[%clk 0:01:08]}  Nh5 {[%clk 0:00:05]} 59. Kc5 {[%clk 0:01:05]}  Nf4 {[%clk 0:00:04]} 60. Nb5+ {[%clk 0:01:04]}  axb5 {[%clk 0:00:04]} 61. axb5 {[%clk 0:01:04]}  Ng6 {[%clk 0:00:02]} 62. b6+ {[%clk 0:01:04]}  Kc8 {[%clk 0:00:02]} 63. Kd6 {[%clk 0:01:02]}  Na6 {[%clk 0:00:02]} 64. c7 {[%clk 0:01:01]}  Nf8 {[%clk 0:00:01]} 1-0


[Site "https://www.chess.com"]

[Event "Titled Tuesday Blitz January 04 2022"]
[White "Gabrielian, Artur"]
[Black "Godzwon, Iwo"]
[WhiteFideId "4131002"]
[BlackFideId "21802483"]
[WhiteElo "2440"]
[BlackElo "2201"]
[Result "1/2-1/2"]
[Round "10"]
[TimeControl "180+1"]
[Date "2022.01.04"]
[WhiteClock "0:00:04"]
[BlackClock "0:00:14"]

1. d4 {[%clk 0:03:00]}  Nf6 {[%clk 0:02:58]} 2. c4 {[%clk 0:03:00]}  e6 {[%clk 0:02:58]} 3. Nc3 {[%clk 0:03:00]}  Bb4 {[%clk 0:02:58]} 4. a3 {[%clk 0:03:00]}  Bxc3+ {[%clk 0:02:56]} 5. bxc3 {[%clk 0:03:01]}  d5 {[%clk 0:02:51]} 6. e3 {[%clk 0:03:01]}  O-O {[%clk 0:02:51]} 7. cxd5 {[%clk 0:02:59]}  exd5 {[%clk 0:02:41]} 8. Bd3 {[%clk 0:02:50]}  Nc6 {[%clk 0:02:40]} 9. Ne2 {[%clk 0:02:49]}  Re8 {[%clk 0:02:36]} 10. f3 {[%clk 0:02:45]}  Na5 {[%clk 0:02:13]} 11. O-O {[%clk 0:02:42]}  c5 {[%clk 0:02:14]} 12. g4 {[%clk 0:02:28]}  Nd7 {[%clk 0:01:55]} 13. Ng3 {[%clk 0:02:24]}  Nf8 {[%clk 0:01:54]} 14. Ra2 {[%clk 0:02:19]}  Bd7 {[%clk 0:01:49]} 15. e4 {[%clk 0:02:13]}  cxd4 {[%clk 0:01:34]} 16. cxd4 {[%clk 0:02:12]}  Qb6 {[%clk 0:01:26]} 17. Be3 {[%clk 0:02:05]}  Rac8 {[%clk 0:01:17]} 18. Bf2 {[%clk 0:01:51]}  Rc3 {[%clk 0:00:49]} 19. exd5 {[%clk 0:01:49]}  Rxd3 {[%clk 0:00:31]} 20. Qxd3 {[%clk 0:01:49]}  Bb5 {[%clk 0:00:31]} 21. Qb1 {[%clk 0:01:45]}  Bxf1 {[%clk 0:00:32]} 22. Qxb6 {[%clk 0:01:45]}  axb6 {[%clk 0:00:33]} 23. Kxf1 {[%clk 0:01:45]}  Rd8 {[%clk 0:00:33]} 24. Nf5 {[%clk 0:01:43]}  Rd7 {[%clk 0:00:28]} 25. d6 {[%clk 0:01:43]}  g6 {[%clk 0:00:27]} 26. Ne7+ {[%clk 0:01:39]}  Kg7 {[%clk 0:00:28]} 27. d5 {[%clk 0:01:14]}  Rxd6 {[%clk 0:00:28]} 28. Bd4+ {[%clk 0:01:13]}  f6 {[%clk 0:00:28]} 29. g5 {[%clk 0:01:01]}  Kf7 {[%clk 0:00:28]} 30. gxf6 {[%clk 0:01:01]}  Nd7 {[%clk 0:00:27]} 31. Rc2 {[%clk 0:00:46]}  Nxf6 {[%clk 0:00:27]} 32. Nc8 {[%clk 0:00:45]}  Rxd5 {[%clk 0:00:27]} 33. Rc7+ {[%clk 0:00:40]}  Rd7 {[%clk 0:00:25]} 34. Bxb6 {[%clk 0:00:14]}  Rxc7 {[%clk 0:00:19]} 35. Bxc7 {[%clk 0:00:13]}  Nc4 {[%clk 0:00:20]} 36. a4 {[%clk 0:00:12]}  Ke6 {[%clk 0:00:20]} 37. Na7 {[%clk 0:00:10]}  Nd5 {[%clk 0:00:20]} 38. Bg3 {[%clk 0:00:10]}  Nc3 {[%clk 0:00:20]} 39. Nb5 {[%clk 0:00:05]}  Nxa4 {[%clk 0:00:20]} 40. Nc7+ {[%clk 0:00:05]}  Kd7 {[%clk 0:00:20]} 41. Nd5 {[%clk 0:00:06]}  Ke6 {[%clk 0:00:21]} 42. Nc7+ {[%clk 0:00:05]}  Kf5 {[%clk 0:00:21]} 43. Ne8 {[%clk 0:00:05]}  Nc3 {[%clk 0:00:20]} 44. Kf2 {[%clk 0:00:05]}  Nd5 {[%clk 0:00:20]} 45. Ke2 {[%clk 0:00:05]}  b5 {[%clk 0:00:20]} 46. Kd3 {[%clk 0:00:05]}  Nf6 {[%clk 0:00:18]} 47. Ng7+ {[%clk 0:00:04]}  Kg5 {[%clk 0:00:16]} 48. h4+ {[%clk 0:00:04]}  Kh6 {[%clk 0:00:16]} 49. Ne6 {[%clk 0:00:04]}  Nh5 {[%clk 0:00:17]} 50. Be1 {[%clk 0:00:04]}  g5 {[%clk 0:00:11]} 51. hxg5+ {[%clk 0:00:04]}  Kg6 {[%clk 0:00:12]} 52. f4 {[%clk 0:00:04]}  Kf5 {[%clk 0:00:12]} 53. Nd4+ {[%clk 0:00:03]}  Kxf4 {[%clk 0:00:12]} 54. Nxb5 {[%clk 0:00:03]}  Ne5+ {[%clk 0:00:13]} 55. Ke2 {[%clk 0:00:04]}  Kxg5 {[%clk 0:00:13]} 56. Nd4 {[%clk 0:00:03]}  Nf4+ {[%clk 0:00:13]} 57. Kf1 {[%clk 0:00:03]}  Ned3 {[%clk 0:00:12]} 58. Bd2 {[%clk 0:00:04]}  Kg4 {[%clk 0:00:13]} 59. Bxf4 {[%clk 0:00:04]}  Nxf4 {[%clk 0:00:13]} 60. Kf2 {[%clk 0:00:04]}  h5 {[%clk 0:00:14]} 61. Nf3 {[%clk 0:00:04]}  h4 {[%clk 0:00:14]} 62. Nxh4 {[%clk 0:00:04]} 1/2-1/2


[Site "https://www.chess.com"]